[Event "*** SCC Grand Prix: Titled Tuesday Blitz"]
[Site "Chess.com"]
[Date "2020.07.21"]
[Round "6"]
[White "ChessAurochs"]
[Black "Izoria123"]
[Result "1-0"]
[WhiteElo "2547"]
[BlackElo "2863"]
[TimeControl "180+1"]
[EndTime "11:07:44 PDT"]
[Termination "ChessAurochs won on time"]

1. e4 {[%clk 0:03:00.9]} 1... c5 {[%clk 0:02:58.4]} 2. Nf3 {[%clk 0:03:00.5]}
2... a6 {[%clk 0:02:58.7]} 3. Nc3 {[%clk 0:02:58.2]} 3... e6 {[%clk 0:02:57.8]}
4. d4 {[%clk 0:02:57.1]} 4... cxd4 {[%clk 0:02:58.7]} 5. Nxd4 {[%clk 0:02:57.9]}
5... d6 {[%clk 0:02:58.4]} 6. Bd3 {[%clk 0:02:57.4]} 6... Nf6 {[%clk 0:02:57.4]}
7. f4 {[%clk 0:02:55.8]} 7... g6 {[%clk 0:02:56.8]} 8. Be3 {[%clk 0:02:48.4]}
8... Bg7 {[%clk 0:02:57.1]} 9. Qf3 {[%clk 0:02:48.6]} 9... O-O {[%clk
0:02:56.4]} 10. h3 {[%clk 0:02:46.9]} 10... Nbd7 {[%clk 0:02:47.6]} 11. g4
{[%clk 0:02:45.4]} 11... e5 {[%clk 0:02:47.4]} 12. Nb3 {[%clk 0:02:33.5]} 12...
exf4 {[%clk 0:02:45.2]} 13. Bxf4 {[%clk 0:02:34.4]} 13... Ne5 {[%clk 0:02:45]}
14. Qg3 {[%clk 0:02:32.4]} 14... Be6 {[%clk 0:02:32.1]} 15. O-O {[%clk
0:02:18.4]} 15... h5 {[%clk 0:02:28.9]} 16. g5 {[%clk 0:02:06.8]} 16... Nfd7
{[%clk 0:02:28.2]} 17. Be2 {[%clk 0:01:50.9]} 17... Nb6 {[%clk 0:02:16.3]} 18.
Rad1 {[%clk 0:01:41.1]} 18... Nbc4 {[%clk 0:02:06.5]} 19. Bc1 {[%clk 0:01:33.7]}
19... Qb6+ {[%clk 0:02:02.4]} 20. Kh1 {[%clk 0:01:28.7]} 20... Rac8 {[%clk
0:02:01.7]} 21. Nd5 {[%clk 0:01:14]} 21... Bxd5 {[%clk 0:01:58.7]} 22. Rxd5
{[%clk 0:00:57.6]} 22... Qc6 {[%clk 0:01:52.6]} 23. Rfd1 {[%clk 0:00:48.6]}
23... Nb6 {[%clk 0:01:46.8]} 24. Rxd6 {[%clk 0:00:42.1]} 24... Qxe4+ {[%clk
0:01:46.1]} 25. Qg2 {[%clk 0:00:42.6]} 25... Qxg2+ {[%clk 0:01:44.9]} 26. Kxg2
{[%clk 0:00:43.5]} 26... Rxc2 {[%clk 0:01:42.9]} 27. R1d2 {[%clk 0:00:43.9]}
27... Rxd2 {[%clk 0:01:41.5]} 28. Rxd2 {[%clk 0:00:38.3]} 28... Rc8 {[%clk
0:01:36.5]} 29. Rd6 {[%clk 0:00:24.8]} 29... Na4 {[%clk 0:01:32.9]} 30. Rd5
{[%clk 0:00:18.6]} 30... b5 {[%clk 0:01:29.3]} 31. h4 {[%clk 0:00:16.8]} 31...
Nc4 {[%clk 0:01:29]} 32. Bf4 {[%clk 0:00:10.2]} 32... Ncxb2 {[%clk 0:01:27.7]}
33. Rd7 {[%clk 0:00:10.1]} 33... Nc3 {[%clk 0:01:27.1]} 34. Bf3 {[%clk
0:00:09.9]} 34... Nxa2 {[%clk 0:01:23.1]} 35. Bd5 {[%clk 0:00:10.1]} 35... Nc3
{[%clk 0:00:48.9]} 36. Bxf7+ {[%clk 0:00:10]} 36... Kh7 {[%clk 0:00:49.1]} 37.
Be6 {[%clk 0:00:06.8]} 37... Re8 {[%clk 0:00:47.4]} 38. Bf7 {[%clk 0:00:07.2]}
38... Rf8 {[%clk 0:00:46.9]} 39. Bd6 {[%clk 0:00:06.4]} 39... Rc8 {[%clk
0:00:45.7]} 40. Be6 {[%clk 0:00:05.9]} 40... Re8 {[%clk 0:00:43]} 41. Bf7 {[%clk
0:00:05.9]} 41... Re2+ {[%clk 0:00:42.8]} 42. Kf3 {[%clk 0:00:05.8]} 42... Nd3
{[%clk 0:00:41.9]} 43. Nc5 {[%clk 0:00:02.8]} 43... Nxc5 {[%clk 0:00:14.3]} 44.
Bxc5 {[%clk 0:00:03.7]} 44... Rh2 {[%clk 0:00:11.1]} 45. Bb3 {[%clk 0:00:03.2]}
45... Rh3+ {[%clk 0:00:11.1]} 46. Kg2 {[%clk 0:00:03.1]} 46... Rxh4 {[%clk
0:00:10.1]} 47. Bf8 {[%clk 0:00:03.2]} 47... Rg4+ {[%clk 0:00:08.5]} 48. Kh3
{[%clk 0:00:03.8]} 48... Rxg5 {[%clk 0:00:06.4]} 49. Rxg7+ {[%clk 0:00:04.4]}
49... Kh8 {[%clk 0:00:06.1]} 50. Rf7 {[%clk 0:00:02.4]} 50... Rf5 {[%clk
0:00:01.7]} 51. Bg7+ {[%clk 0:00:02.6]} 51... Kh7 {[%clk 0:00:02]} 52. Bf6+
{[%clk 0:00:03.1]} 52... Kh6 {[%clk 0:00:02.3]} 53. Bg7+ {[%clk 0:00:03.5]}
53... Kg5 {[%clk 0:00:01.6]} 54. Ra7 {[%clk 0:00:04.4]} 1-0

[Event "*** SCC Grand Prix: Titled Tuesday Blitz"]
[Site "Chess.com"]
[Date "2020.07.21"]
[Round "6"]
[White "Kildepiotr"]
[Black "Fandorine"]
[Result "0-1"]
[WhiteElo "2615"]
[BlackElo "2926"]
[TimeControl "180+1"]
[EndTime "11:07:51 PDT"]
[Termination "Fandorine won by resignation"]

1. Nf3 {[%clk 0:03:00.9]} 1... Nf6 {[%clk 0:02:59.8]} 2. g3 {[%clk 0:03:00.9]}
2... g6 {[%clk 0:02:59.9]} 3. Bg2 {[%clk 0:03:01.4]} 3... Bg7 {[%clk 0:03:00.4]}
4. O-O {[%clk 0:03:01.9]} 4... O-O {[%clk 0:03:01.3]} 5. d4 {[%clk 0:03:01.4]}
5... d6 {[%clk 0:03:00.4]} 6. Nbd2 {[%clk 0:03:01.2]} 6... Nc6 {[%clk
0:02:59.4]} 7. e4 {[%clk 0:03:00.2]} 7... e5 {[%clk 0:02:59.2]} 8. dxe5 {[%clk
0:03:00.6]} 8... dxe5 {[%clk 0:02:56.4]} 9. c3 {[%clk 0:03:00.2]} 9... a5 {[%clk
0:02:53.9]} 10. a4 {[%clk 0:02:59.1]} 10... b6 {[%clk 0:02:54.2]} 11. Qe2 {[%clk
0:02:55.6]} 11... Ba6 {[%clk 0:02:49.6]} 12. Nc4 {[%clk 0:02:55.6]} 12... Qe7
{[%clk 0:02:49.8]} 13. Rd1 {[%clk 0:02:53.4]} 13... h6 {[%clk 0:02:45.4]} 14.
Bf1 {[%clk 0:02:44.8]} 14... Qe6 {[%clk 0:02:44.1]} 15. b3 {[%clk 0:02:44.5]}
15... Rfd8 {[%clk 0:02:38.7]} 16. Ba3 {[%clk 0:02:43.7]} 16... Qg4 {[%clk
0:01:52.9]} 17. Nfd2 {[%clk 0:02:38.6]} 17... Qe6 {[%clk 0:01:49.8]} 18. Qe1
{[%clk 0:02:33.5]} 18... Bf8 {[%clk 0:01:45.5]} 19. Bxf8 {[%clk 0:02:32.3]}
19... Kxf8 {[%clk 0:01:46.4]} 20. f3 {[%clk 0:02:29.1]} 20... Kg7 {[%clk
0:01:46.5]} 21. Ne3 {[%clk 0:02:26.5]} 21... Bxf1 {[%clk 0:01:43.1]} 22. Qxf1
{[%clk 0:02:27.4]} 22... Rd7 {[%clk 0:01:20.9]} 23. Ndc4 {[%clk 0:02:25.3]}
23... Rad8 {[%clk 0:01:20]} 24. Rxd7 {[%clk 0:02:25.2]} 24... Rxd7 {[%clk
0:01:20]} 25. Rd1 {[%clk 0:02:25.7]} 25... h5 {[%clk 0:01:15.5]} 26. Rd3 {[%clk
0:02:19.5]} 26... Qe7 {[%clk 0:01:03.7]} 27. Qd1 {[%clk 0:02:15.4]} 27... Rxd3
{[%clk 0:01:02.9]} 28. Qxd3 {[%clk 0:02:16.3]} 28... h4 {[%clk 0:01:03.3]} 29.
Nd5 {[%clk 0:02:08.7]} 29... Qd8 {[%clk 0:00:52.1]} 30. Qd2 {[%clk 0:01:57.4]}
30... hxg3 {[%clk 0:00:47.7]} 31. hxg3 {[%clk 0:01:57.2]} 31... Nh5 {[%clk
0:00:45.5]} 32. Kf2 {[%clk 0:01:54.9]} 32... Qd7 {[%clk 0:00:36.5]} 33. Kg2
{[%clk 0:01:52.7]} 33... Nf6 {[%clk 0:00:24.9]} 34. Nxf6 {[%clk 0:01:47]} 34...
Qxd2+ {[%clk 0:00:24.6]} 35. Nxd2 {[%clk 0:01:47.4]} 35... Kxf6 {[%clk
0:00:25.5]} 36. Kf2 {[%clk 0:01:45.1]} 36... Nb8 {[%clk 0:00:25.8]} 37. Ke3
{[%clk 0:01:42.3]} 37... Na6 {[%clk 0:00:26.3]} 38. Kd3 {[%clk 0:01:39.4]} 38...
Nc5+ {[%clk 0:00:14.4]} 39. Kc4 {[%clk 0:01:39.4]} 39... c6 {[%clk 0:00:13.4]}
40. Nf1 {[%clk 0:01:35.7]} 40... Ke6 {[%clk 0:00:10.6]} 41. Ne3 {[%clk
0:01:31.5]} 41... Kd6 {[%clk 0:00:11]} 42. g4 {[%clk 0:01:24.4]} 42... Nd7
{[%clk 0:00:09.6]} 43. b4 {[%clk 0:01:19.5]} 43... b5+ {[%clk 0:00:10]} 44. axb5
{[%clk 0:01:18.5]} 44... Nb6+ {[%clk 0:00:09.6]} 45. Kd3 {[%clk 0:01:11.6]}
45... axb4 {[%clk 0:00:09.4]} 46. bxc6 {[%clk 0:01:02.9]} 46... b3 {[%clk
0:00:09.4]} 47. Nd5 {[%clk 0:00:53.7]} 47... Kxc6 {[%clk 0:00:05.5]} 48. Nxb6
{[%clk 0:00:45.7]} 48... Kxb6 {[%clk 0:00:06.4]} 49. c4 {[%clk 0:00:45.9]} 49...
Kc5 {[%clk 0:00:06.7]} 50. Kc3 {[%clk 0:00:45.9]} 50... b2 {[%clk 0:00:07]} 51.
Kxb2 {[%clk 0:00:46]} 51... Kxc4 {[%clk 0:00:07.6]} 52. Kc2 {[%clk 0:00:46.2]}
52... Kd4 {[%clk 0:00:06.6]} 53. Kd2 {[%clk 0:00:46.3]} 53... f6 {[%clk
0:00:04]} 54. Ke2 {[%clk 0:00:45.3]} 54... Kc3 {[%clk 0:00:04.4]} 55. Ke3 {[%clk
0:00:45.3]} 55... Kc2 {[%clk 0:00:04.6]} 56. Ke2 {[%clk 0:00:45.5]} 56... Kc1
{[%clk 0:00:05]} 57. Ke1 {[%clk 0:00:45.7]} 57... Kc2 {[%clk 0:00:05.5]} 58. Ke2
{[%clk 0:00:45.9]} 58... g5 {[%clk 0:00:05.9]} 59. Ke3 {[%clk 0:00:27]} 59...
Kd1 {[%clk 0:00:06.2]} 60. Kd3 {[%clk 0:00:26.1]} 60... Ke1 {[%clk 0:00:05.8]}
61. Kc4 {[%clk 0:00:26.5]} 61... Ke2 {[%clk 0:00:05.6]} 62. Kd5 {[%clk
0:00:26.8]} 62... Kxf3 {[%clk 0:00:06]} 63. Ke6 {[%clk 0:00:27.1]} 63... Kxe4
{[%clk 0:00:05.7]} 64. Kxf6 {[%clk 0:00:27.3]} 64... Kf4 {[%clk 0:00:06.6]} 0-1

[Event "*** SCC Grand Prix: Titled Tuesday Blitz"]
[Site "Chess.com"]
[Date "2020.07.21"]
[Round "6"]
[White "Isajevsky_Anton"]
[Black "Munguntuul_B"]
[Result "1-0"]
[WhiteElo "2582"]
[BlackElo "2587"]
[TimeControl "180+1"]
[EndTime "11:07:52 PDT"]
[Termination "Isajevsky_Anton won on time"]

1. c4 {[%clk 0:03:00.9]} 1... e6 {[%clk 0:02:55.3]} 2. Nf3 {[%clk 0:03:00.1]}
2... d5 {[%clk 0:02:54.4]} 3. e3 {[%clk 0:03:00.6]} 3... Nf6 {[%clk 0:02:52]} 4.
Nc3 {[%clk 0:03:00.3]} 4... b6 {[%clk 0:02:45.4]} 5. cxd5 {[%clk 0:02:54]} 5...
exd5 {[%clk 0:02:44.8]} 6. d4 {[%clk 0:02:51.1]} 6... Bd6 {[%clk 0:02:40.7]} 7.
Bd3 {[%clk 0:02:50.6]} 7... O-O {[%clk 0:02:40.1]} 8. O-O {[%clk 0:02:50.3]}
8... Re8 {[%clk 0:02:37.7]} 9. b3 {[%clk 0:02:49.5]} 9... Bb7 {[%clk 0:02:30.6]}
10. Bb2 {[%clk 0:02:48.8]} 10... Nbd7 {[%clk 0:02:26.3]} 11. Rc1 {[%clk
0:02:47.2]} 11... a6 {[%clk 0:02:26]} 12. Ne2 {[%clk 0:02:44.7]} 12... Ne4
{[%clk 0:02:17.9]} 13. Ng3 {[%clk 0:02:43.8]} 13... Ndf6 {[%clk 0:02:13.5]} 14.
Nf5 {[%clk 0:02:12.5]} 14... Bf8 {[%clk 0:02:10.8]} 15. Ne5 {[%clk 0:02:12.3]}
15... g6 {[%clk 0:02:09.4]} 16. Nh4 {[%clk 0:02:11.9]} 16... Bh6 {[%clk
0:01:51]} 17. Nhf3 {[%clk 0:01:56.3]} 17... Qd6 {[%clk 0:01:43.3]} 18. Rc2
{[%clk 0:01:29.8]} 18... Rac8 {[%clk 0:01:14.1]} 19. Qa1 {[%clk 0:01:28.1]}
19... Qe6 {[%clk 0:01:04.1]} 20. Rfc1 {[%clk 0:01:23.9]} 20... c6 {[%clk
0:00:52.1]} 21. h3 {[%clk 0:01:14.4]} 21... Nd7 {[%clk 0:00:50.2]} 22. a4 {[%clk
0:00:40]} 22... a5 {[%clk 0:00:47.7]} 23. Nxd7 {[%clk 0:00:24]} 23... Qxd7
{[%clk 0:00:46.9]} 24. Ne5 {[%clk 0:00:24.5]} 24... Qe6 {[%clk 0:00:46.2]} 25.
Bxe4 {[%clk 0:00:24.7]} 25... dxe4 {[%clk 0:00:45.3]} 26. Nc4 {[%clk 0:00:25.3]}
26... Rc7 {[%clk 0:00:36.7]} 27. Nxb6 {[%clk 0:00:24.8]} 27... Qxb3 {[%clk
0:00:35.9]} 28. Nc4 {[%clk 0:00:22.9]} 28... Ra8 {[%clk 0:00:31.6]} 29. Rc3
{[%clk 0:00:18.3]} 29... Qb4 {[%clk 0:00:31.2]} 30. Ba3 {[%clk 0:00:16.3]} 30...
Qxa4 {[%clk 0:00:30.9]} 31. Bd6 {[%clk 0:00:16.5]} 31... Qxa1 {[%clk 0:00:27.5]}
32. Rxa1 {[%clk 0:00:17.4]} 32... Rd7 {[%clk 0:00:27.2]} 33. Bc5 {[%clk
0:00:17.6]} 33... Rdd8 {[%clk 0:00:22.5]} 34. Rxa5 {[%clk 0:00:16.9]} 34... Ba6
{[%clk 0:00:20.6]} 35. Rca3 {[%clk 0:00:16.4]} 35... Bb7 {[%clk 0:00:19.6]} 36.
Nd6 {[%clk 0:00:16.4]} 36... Rxa5 {[%clk 0:00:17.8]} 37. Rxa5 {[%clk 0:00:16]}
37... Ba8 {[%clk 0:00:17.3]} 38. Ra7 {[%clk 0:00:16.3]} 38... Bf8 {[%clk
0:00:16.5]} 39. Nxf7 {[%clk 0:00:15.3]} 39... Bxc5 {[%clk 0:00:15.8]} 40. dxc5
{[%clk 0:00:15.8]} 40... Kf8 {[%clk 0:00:09.6]} 41. Nd6 {[%clk 0:00:15.8]} 41...
Kg8 {[%clk 0:00:08.6]} 42. g4 {[%clk 0:00:15.7]} 42... Rb8 {[%clk 0:00:07.8]}
43. Kg2 {[%clk 0:00:15.9]} 43... h5 {[%clk 0:00:06.4]} 44. gxh5 {[%clk
0:00:15.2]} 44... gxh5 {[%clk 0:00:06.3]} 45. Kg3 {[%clk 0:00:15.7]} 45... Rf8
{[%clk 0:00:05.3]} 46. Kh4 {[%clk 0:00:15.8]} 46... Rxf2 {[%clk 0:00:03.1]} 47.
Rxa8+ {[%clk 0:00:16.2]} 47... Kg7 {[%clk 0:00:04]} 48. Kxh5 {[%clk 0:00:16.3]}
48... Rc2 {[%clk 0:00:02.1]} 49. Kg5 {[%clk 0:00:13.9]} 49... Rxc5+ {[%clk
0:00:01.6]} 50. Nf5+ {[%clk 0:00:14.2]} 50... Kf7 {[%clk 0:00:01.8]} 51. Ra7+
{[%clk 0:00:14.6]} 51... Ke8 {[%clk 0:00:01.8]} 52. Kf4 {[%clk 0:00:14.7]} 1-0

[Event "*** SCC Grand Prix: Titled Tuesday Blitz"]
[Site "Chess.com"]
[Date "2020.07.21"]
[Round "6"]
[White "Chess_Boxer123"]
[Black "Tactictic"]
[Result "0-1"]
[WhiteElo "2558"]
[BlackElo "2396"]
[TimeControl "180+1"]
[EndTime "11:07:52 PDT"]
[Termination "Tactictic won by checkmate"]

1. d4 {[%clk 0:03:00.9]} 1... Nf6 {[%clk 0:02:59.5]} 2. c4 {[%clk 0:03:00.2]}
2... e6 {[%clk 0:02:59.9]} 3. g3 {[%clk 0:02:58.4]} 3... d5 {[%clk 0:02:57.9]}
4. Nf3 {[%clk 0:02:58.7]} 4... Bb4+ {[%clk 0:02:57]} 5. Bd2 {[%clk 0:02:58.1]}
5... Bd6 {[%clk 0:02:56.8]} 6. Bg2 {[%clk 0:02:57.7]} 6... c6 {[%clk 0:02:56.7]}
7. O-O {[%clk 0:02:57.6]} 7... O-O {[%clk 0:02:56.5]} 8. b3 {[%clk 0:02:54.1]}
8... Ne4 {[%clk 0:02:48.5]} 9. Nc3 {[%clk 0:02:52.8]} 9... Nxd2 {[%clk
0:02:46.6]} 10. Qxd2 {[%clk 0:02:53.7]} 10... Nd7 {[%clk 0:02:44.2]} 11. e4
{[%clk 0:02:47.9]} 11... dxe4 {[%clk 0:02:37.5]} 12. Nxe4 {[%clk 0:02:47.5]}
12... Bc7 {[%clk 0:02:37.8]} 13. Rad1 {[%clk 0:02:37.5]} 13... e5 {[%clk
0:02:31.4]} 14. d5 {[%clk 0:02:28.6]} 14... cxd5 {[%clk 0:02:19.7]} 15. cxd5
{[%clk 0:02:04.5]} 15... Nf6 {[%clk 0:02:18.5]} 16. Nxf6+ {[%clk 0:02:03.7]}
16... Qxf6 {[%clk 0:02:19.4]} 17. d6 {[%clk 0:01:51.7]} 17... Rd8 {[%clk
0:02:13.9]} 18. Ng5 {[%clk 0:01:49.9]} 18... Rxd6 {[%clk 0:02:08]} 19. Ne4
{[%clk 0:01:49.5]} 19... Rxd2 {[%clk 0:01:58.1]} 20. Nxf6+ {[%clk 0:01:48.1]}
20... gxf6 {[%clk 0:01:58.1]} 21. Rxd2 {[%clk 0:01:47.6]} 21... Rb8 {[%clk
0:01:46.6]} 22. Rc1 {[%clk 0:01:38.7]} 22... Bb6 {[%clk 0:01:46]} 23. Be4 {[%clk
0:00:49.8]} 23... Be6 {[%clk 0:01:35.2]} 24. Kg2 {[%clk 0:00:37.9]} 24... Kg7
{[%clk 0:01:03]} 25. h4 {[%clk 0:00:37.3]} 25... f5 {[%clk 0:00:58.3]} 26. Bd5
{[%clk 0:00:36.4]} 26... Bd7 {[%clk 0:00:36.3]} 27. Bxf7 {[%clk 0:00:23.3]}
27... Bc6+ {[%clk 0:00:26.7]} 28. Bd5 {[%clk 0:00:04.9]} 28... Rd8 {[%clk
0:00:25.5]} 29. Rcd1 {[%clk 0:00:04.3]} 29... Rxd5 {[%clk 0:00:24.9]} 30. Rxd5
{[%clk 0:00:04]} 30... Bd4 {[%clk 0:00:25.6]} 31. Kf1 {[%clk 0:00:01.8]} 31...
Bxd5 {[%clk 0:00:25.9]} 32. f4 {[%clk 0:00:02.2]} 32... Kf6 {[%clk 0:00:25.1]}
33. fxe5+ {[%clk 0:00:02.5]} 33... Kxe5 {[%clk 0:00:26]} 34. Re1+ {[%clk
0:00:02.8]} 34... Be4 {[%clk 0:00:26.4]} 35. Rc1 {[%clk 0:00:02.5]} 35... h5
{[%clk 0:00:20.4]} 36. Rc8 {[%clk 0:00:02.8]} 36... Bd3+ {[%clk 0:00:19.8]} 37.
Kg2 {[%clk 0:00:02.7]} 37... Be4+ {[%clk 0:00:19.5]} 38. Kh2 {[%clk 0:00:02.8]}
38... Bb6 {[%clk 0:00:19.6]} 39. Rb8 {[%clk 0:00:02.3]} 39... Kd4 {[%clk
0:00:19.5]} 40. Re8 {[%clk 0:00:02.1]} 40... Kc3 {[%clk 0:00:19.6]} 41. Kh3
{[%clk 0:00:03]} 41... Kb2 {[%clk 0:00:19.6]} 42. Rf8 {[%clk 0:00:02.5]} 42...
Kxa2 {[%clk 0:00:19.5]} 43. b4 {[%clk 0:00:03.1]} 43... Kb3 {[%clk 0:00:19.5]}
44. b5 {[%clk 0:00:03.7]} 44... Kb4 {[%clk 0:00:19.9]} 45. Rh8 {[%clk
0:00:04.6]} 45... Bf3 {[%clk 0:00:19.6]} 46. Rf8 {[%clk 0:00:01.3]} 46... Bg4+
{[%clk 0:00:19.4]} 47. Kg2 {[%clk 0:00:02.2]} 47... Kxb5 {[%clk 0:00:19.9]} 48.
Re8 {[%clk 0:00:03]} 48... a5 {[%clk 0:00:19.6]} 49. Kh2 {[%clk 0:00:03.1]}
49... Ka6 {[%clk 0:00:19.6]} 50. Re1 {[%clk 0:00:03.5]} 50... Bc5 {[%clk
0:00:19.8]} 51. Rc1 {[%clk 0:00:03.5]} 51... b6 {[%clk 0:00:20.2]} 52. Re1
{[%clk 0:00:03.3]} 52... a4 {[%clk 0:00:20.7]} 53. Rh1 {[%clk 0:00:04.1]} 53...
a3 {[%clk 0:00:20.4]} 54. Ra1 {[%clk 0:00:03.2]} 54... Ka5 {[%clk 0:00:20.8]}
55. Rf1 {[%clk 0:00:01.8]} 55... Ka4 {[%clk 0:00:20.8]} 56. Re1 {[%clk
0:00:01.6]} 56... a2 {[%clk 0:00:20.7]} 57. Rb1 {[%clk 0:00:02.1]} 57... axb1=Q
{[%clk 0:00:19.5]} 58. Kg2 {[%clk 0:00:02.4]} 58... Qg1# {[%clk 0:00:20.4]} 0-1

[Event "*** SCC Grand Prix: Titled Tuesday Blitz"]
[Site "Chess.com"]
[Date "2020.07.21"]
[Round "6"]
[White "LedakovAlexandr"]
[Black "cukin84"]
[Result "1-0"]
[WhiteElo "2484"]
[BlackElo "2163"]
[TimeControl "180+1"]
[EndTime "11:07:54 PDT"]
[Termination "LedakovAlexandr won by resignation"]

1. d4 {[%clk 0:02:59.1]} 1... f5 {[%clk 0:02:59.3]} 2. Nf3 {[%clk 0:02:59.2]}
2... Nf6 {[%clk 0:02:58.9]} 3. Bg5 {[%clk 0:02:59.7]} 3... g6 {[%clk 0:02:58.3]}
4. Bxf6 {[%clk 0:02:58.4]} 4... exf6 {[%clk 0:02:58.5]} 5. h4 {[%clk 0:02:59.3]}
5... h5 {[%clk 0:02:57.7]} 6. Nc3 {[%clk 0:02:59.1]} 6... d5 {[%clk 0:02:57.7]}
7. Qd2 {[%clk 0:02:58.9]} 7... Be6 {[%clk 0:02:55.9]} 8. e3 {[%clk 0:02:57.1]}
8... Qd7 {[%clk 0:02:54.8]} 9. Ne2 {[%clk 0:02:55.7]} 9... Bd6 {[%clk
0:02:50.4]} 10. Nf4 {[%clk 0:02:55.8]} 10... Bxf4 {[%clk 0:02:49.8]} 11. exf4
{[%clk 0:02:56.7]} 11... O-O {[%clk 0:02:43]} 12. O-O-O {[%clk 0:02:56]} 12...
c6 {[%clk 0:02:40.8]} 13. Kb1 {[%clk 0:02:55.2]} 13... b5 {[%clk 0:02:40.1]} 14.
Ne1 {[%clk 0:02:54.2]} 14... Qd6 {[%clk 0:02:37.8]} 15. Nd3 {[%clk 0:02:53.5]}
15... Nd7 {[%clk 0:02:36.6]} 16. Qb4 {[%clk 0:02:54]} 16... Qxb4 {[%clk
0:02:30.4]} 17. Nxb4 {[%clk 0:02:54.9]} 17... Rfc8 {[%clk 0:02:29.9]} 18. Na6
{[%clk 0:02:53.4]} 18... Kf7 {[%clk 0:02:26.1]} 19. Be2 {[%clk 0:02:52.7]} 19...
Nb6 {[%clk 0:02:25.9]} 20. Nc5 {[%clk 0:02:47.8]} 20... Bd7 {[%clk 0:02:21.3]}
21. Rhe1 {[%clk 0:02:45.3]} 21... Re8 {[%clk 0:02:19.2]} 22. b3 {[%clk
0:02:41.4]} 22... a5 {[%clk 0:02:15.8]} 23. Bd3 {[%clk 0:02:39.4]} 23... Rxe1
{[%clk 0:02:10.9]} 24. Rxe1 {[%clk 0:02:39.7]} 24... Re8 {[%clk 0:02:10.9]} 25.
Rd1 {[%clk 0:02:39.8]} 25... Re7 {[%clk 0:02:08.6]} 26. Kc1 {[%clk 0:02:34.5]}
26... Bc8 {[%clk 0:02:08.5]} 27. Bf1 {[%clk 0:02:31.1]} 27... Nd7 {[%clk
0:02:06.1]} 28. Nd3 {[%clk 0:02:31.5]} 28... Nb6 {[%clk 0:02:05.2]} 29. Kd2
{[%clk 0:02:30.3]} 29... a4 {[%clk 0:02:04.8]} 30. Nc5 {[%clk 0:02:27.2]} 30...
axb3 {[%clk 0:02:02.6]} 31. cxb3 {[%clk 0:02:26.5]} 31... Ra7 {[%clk 0:02:02.5]}
32. Ra1 {[%clk 0:02:25.8]} 32... Nd7 {[%clk 0:01:57.8]} 33. Nd3 {[%clk 0:02:25]}
33... Ra3 {[%clk 0:01:50.1]} 34. Kc3 {[%clk 0:02:24.5]} 34... Nb6 {[%clk
0:01:48.3]} 35. Be2 {[%clk 0:02:15.5]} 35... Ra7 {[%clk 0:01:42.8]} 36. Bd1
{[%clk 0:02:10.8]} 36... Ba6 {[%clk 0:01:34.6]} 37. Nb4 {[%clk 0:02:07.5]} 37...
Bc8 {[%clk 0:01:31]} 38. Be2 {[%clk 0:02:03.6]} 38... Bd7 {[%clk 0:01:30.4]} 39.
Nd3 {[%clk 0:01:57.8]} 39... Ra3 {[%clk 0:01:29]} 40. Kb2 {[%clk 0:01:55.2]}
40... Ra7 {[%clk 0:01:28.4]} 41. Nc5 {[%clk 0:01:54.7]} 41... Ke7 {[%clk
0:01:25]} 42. a4 {[%clk 0:01:51.3]} 42... bxa4 {[%clk 0:01:23.9]} 43. bxa4
{[%clk 0:01:52.2]} 43... Kd6 {[%clk 0:01:21.6]} 44. Kc3 {[%clk 0:01:48.8]} 44...
Nc8 {[%clk 0:01:17]} 45. Bd3 {[%clk 0:01:42.6]} 45... Ra8 {[%clk 0:01:13.5]} 46.
Rb1 {[%clk 0:01:39.8]} 46... Ra7 {[%clk 0:01:10.5]} 47. Rb8 {[%clk 0:01:36.9]}
47... Kc7 {[%clk 0:01:08.4]} 48. Rb2 {[%clk 0:01:33.7]} 48... Nd6 {[%clk
0:01:01.3]} 49. Kb4 {[%clk 0:01:22.4]} 49... Ne4 {[%clk 0:00:59.9]} 50. Bxe4
{[%clk 0:00:53]} 50... fxe4 {[%clk 0:00:59.5]} 51. Rb3 {[%clk 0:00:49.9]} 51...
Ra8 {[%clk 0:00:52]} 52. Ka3 {[%clk 0:00:42.5]} 52... Bc8 {[%clk 0:00:48.1]} 53.
Rg3 {[%clk 0:00:41.9]} 53... Bf5 {[%clk 0:00:47.1]} 54. Rc3 {[%clk 0:00:42.1]}
54... Kb6 {[%clk 0:00:44.5]} 55. Nb3 {[%clk 0:00:40.5]} 55... Re8 {[%clk
0:00:35.8]} 56. a5+ {[%clk 0:00:39.7]} 56... Kb7 {[%clk 0:00:30.7]} 57. Nc5+
{[%clk 0:00:37.8]} 57... Kc7 {[%clk 0:00:29.7]} 58. Rb3 {[%clk 0:00:33.3]} 58...
Bc8 {[%clk 0:00:25]} 59. a6 {[%clk 0:00:29.1]} 59... Bxa6 {[%clk 0:00:19.9]} 60.
Nxa6+ {[%clk 0:00:28.7]} 60... Kd6 {[%clk 0:00:18.6]} 61. Nc5 {[%clk 0:00:29.6]}
61... g5 {[%clk 0:00:17.2]} 62. fxg5 {[%clk 0:00:22.8]} 62... fxg5 {[%clk
0:00:16.9]} 63. Rb7 {[%clk 0:00:20]} 63... Rd8 {[%clk 0:00:13]} 64. hxg5 {[%clk
0:00:18.9]} 1-0